[Event "WTCC-65 2018"]
[Site "Radebeul"]
[Date "2018.07.13"]
[Round "7"]
[White "Vaisser, Anatoly"]
[Black "Harestad, Thor Geir"]
[Result "1-0"]
[ECO "A59"]
[WhiteElo "2502"]
[BlackElo "2205"]
[Annotator "ChessBase"]
[PlyCount "83"]
[EventDate "2018.07.07"]
[EventType "team-tourn"]
[EventCountry "GER"]
[SourceTitle "playchess.com"]
[Source "ChessBase"]
[SourceQuality "1"]
[TimeControl "40/5400+30:1800+30"]

1. d4 {[%emt 0:00:00]} Nf6 {[%emt 0:00:00]} 2. c4 {[%emt 0:00:00]} c5 {[%emt 0:00:04]} 3. d5 {[%emt 0:00:02]} b5 {[%emt 0:00:09]} 4. cxb5 {[%emt 0:01:18]} a6 {[%emt 0:00:41]} 5. bxa6 {[%emt 0:00:25]} d6 {[%emt 0:00:28]} 6. Nc3 {[%emt 0:00:31]} Bxa6 {[%emt 0:00:11]} 7. Nf3 {[%emt 0:03:32]} g6 {[%emt 0:00:38]} 8. e4 {[%emt 0:01:02]} Bxf1 {[%emt 0:00:19]} 9. Kxf1 {[%emt 0:00:07]} Bg7 {[%emt 0:00:33]} 10. g3 {[%emt 0:00:08]} O-O {[%emt 0:00:09]} 11. Kg2 {[%emt 0:00:05]} Qb6 {[%emt 0:02:43]} 12. Re1 {[%emt 0:13:03]} Nfd7 {[%emt 0:01:26]} 13. Qe2 {[%emt 0:04:20]} Na6 {[%emt 0:03:46]} 14. Nd2 {[%emt 0:02:34]} Qb7 {[%emt 0:03:30]} 15. Nc4 {[%emt 0:05:18]} Nc7 {[%emt 0:02:38]} 16. a4 {[%emt 0:08:24]} Nb6 {[%emt 0:07:53]} 17. Ne3 {[%emt 0:05:55]} Qa6 {[%emt 0:04:44]} 18. Qc2 {[%emt 0:03:51]} Nc4 {[%emt 0:01:59]} 19. b3 {[%emt 0:03:40]} Nxe3+ {[%emt 0:02:32]} 20. Bxe3 {[%emt 0:00:37]} Rab8 {[%emt 0:01:04]} 21. Rab1 {[%emt 0:01:02]} Qa5 {[%emt 0:04:32]} 22. Bd2 {[%emt 0:01:18]} Qa8 {[%emt 0:00:32]} 23. Qd3 {[%emt 0:06:03]} Rbd8 {[%emt 0:05:15]} 24. Nd1 {[%emt 0:02:21]} f5 {[%emt 0:04:40]} 25. f3 {[%emt 0:01:23]} fxe4 {[%emt 0:02:22]} 26. fxe4 {[%emt 0:00:58]} Ne8 {[%emt 0:04:31]} 27. Ne3 {[%emt 0:04:20]} Nf6 {[%emt 0:01:25]} 28. Bc3 {[%emt 0:00:53]} Bh6 {[%emt 0:05:09]} 29. Nc4 {[%emt 0:02:22]} Qb7 {[%emt 0:01:40]} 30. Na5 {[%emt 0:04:09]} Qd7 {[%emt 0:03:58]} 31. Nc6 {[%emt 0:01:02]} Rde8 {[%emt 0:04:18]} 32. Bxf6 {[%emt 0:02:25]} exf6 {[%emt 0:01:38]} 33. a5 {[%emt 0:00:28]} Rf7 {[%emt 0:02:15]} 34. a6 {[%emt 0:00:35]} Ref8 {[%emt 0:01:04]} 35. b4 {[%emt 0:00:59]} Ra8 {[%emt 0:11:12]} 36. bxc5 dxc5 {[%emt 0:00:22]} 37. Rb7 {[%emt 0:03:59]} Qd6 {[%emt 0:00:55]} 38. Reb1 {[%emt 0:00:57]} Bf8 {[%emt 0:00:52]} 39. Rxf7 {[%emt 0:02:35]} Kxf7 {[%emt 0:00:57]} 40. Rb7+ {[%emt 0:00:05]} Kg8 {[%emt 0:00:36]} 41. a7 {[%emt 0:31:24]} c4 {[%emt 0:30:49]} 42. Qxc4 {[%emt 0:00:11]} 1-0

[Event "WTCC-65 2018"]
[Site "Radebeul"]
[Date "2018.07.13"]
[Round "7"]
[White "Boidman, Yuri"]
[Black "Clara, Hans-Joachim"]
[Result "1-0"]
[ECO "B53"]
[WhiteElo "2358"]
[BlackElo "2289"]
[Annotator "NA"]
[PlyCount "23"]
[EventDate "2018.07.07"]
[EventType "team-tourn"]
[EventCountry "GER"]
[SourceTitle "playchess.com"]
[Source "ChessBase"]
[SourceQuality "1"]
[TimeControl "40/5400+30:1800+30"]

1. e4 {[%emt 0:00:00]} c5 {[%emt 0:00:00]} 2. Nf3 {[%emt 0:00:00]} d6 {[%emt 0:00:00]} 3. d4 {[%emt 0:00:02]} cxd4 {[%emt 0:00:00]} 4. Qxd4 {[%emt 0:00:12]} a6 {[%emt 0:00:57]} 5. Be3 {[%emt 0:00:09]} Nf6 {[%emt 0:01:44]} 6. Nc3 {[%emt 0:01:00]} Nc6 {[%emt 0:01:24]} 7. Qd2 {[%emt 0:00:57]} e6 {[%emt 0:04:27]} 8. O-O-O {[%emt 0:00:39]} b5 {[%emt 0:02:54]} 9. e5 {[%emt 0:01:49]} dxe5 {[%emt 0:00:50]} 10. Qxd8+ {[%emt 0:00:16]} Nxd8 {[%emt 0:00:02]} 11. Nxb5 {[%emt 0:00:39]} axb5 {[%emt 0:00:57]} 12. Bxb5+ 1-0

[Event "WTCC-65 2018"]
[Site "Radebeul"]
[Date "2018.07.13"]
[Round "7"]
[White "Schmidt, Bodo"]
[Black "Romcovici, Victor"]
[Result "1-0"]
[ECO "A97"]
[WhiteElo "2344"]
[BlackElo "2114"]
[Annotator "NA"]
[PlyCount "81"]
[EventDate "2018.07.07"]
[EventType "team-tourn"]
[EventCountry "GER"]
[SourceTitle "playchess.com"]
[Source "ChessBase"]
[SourceQuality "1"]
[TimeControl "40/5400+30:1800+30"]

1. d4 {[%emt 0:00:00]} d6 {[%emt 0:00:00]} 2. Nf3 {[%emt 0:00:40]} f5 {[%emt 0:00:00]} 3. g3 {[%emt 0:00:58]} Nf6 {[%emt 0:00:00]} 4. Bg2 {[%emt 0:00:07]} e6 {[%emt 0:01:50]} 5. O-O {[%emt 0:02:54]} Be7 {[%emt 0:00:06]} 6. c4 {[%emt 0:01:23]} O-O {[%emt 0:00:06]} 7. Nc3 {[%emt 0:00:06]} Qe8 {[%emt 0:02:54]} 8. Re1 {[%emt 0:01:40]} Qh5 {[%emt 0:00:06]} 9. Qc2 {[%emt 0:06:16]} Nc6 {[%emt 0:02:04]} 10. d5 {[%emt 0:04:40]} Nb4 {[%emt 0:03:35]} 11. Qb3 {[%emt 0:08:17]} Na6 {[%emt 0:00:56]} 12. dxe6 {[%emt 0:06:50]} Nc5 {[%emt 0:00:09]} 13. Qc2 {[%emt 0:00:08]} Nxe6 {[%emt 0:05:31]} 14. Nd5 {[%emt 0:01:16]} Bd8 {[%emt 0:01:12]} 15. Rd1 {[%emt 0:02:18]} Ng4 {[%emt 0:11:54]} 16. h3 {[%emt 0:02:08]} Ne5 {[%emt 0:00:51]} 17. Nd4 {[%emt 0:00:56]} Nxd4 {[%emt 0:11:05]} 18. Rxd4 {[%emt 0:00:03]} g5 {[%emt 0:01:22]} 19. f4 {[%emt 0:10:40]} c6 {[%emt 0:10:57]} 20. fxe5 {[%emt 0:00:34]} dxe5 {[%emt 0:00:08]} 21. Rd1 {[%emt 0:02:21]} cxd5 {[%emt 0:00:06]} 22. Rxd5 {[%emt 0:00:49]} e4 {[%emt 0:09:04]} 23. Be3 {[%emt 0:04:56]} Be6 {[%emt 0:00:33]} 24. Re5 {[%emt 0:11:40]} Qg6 {[%emt 0:12:34]} 25. g4 {[%emt 0:03:44]} Bc7 {[%emt 0:01:25]} 26. gxf5 {[%emt 0:00:46]} Bxf5 {[%emt 0:00:10]} 27. Rd5 {[%emt 0:02:01]} h6 {[%emt 0:02:16]} 28. Rf1 {[%emt 0:02:34]} Qe6 {[%emt 0:08:44]} 29. Rfxf5 {[%emt 0:03:44]} Rxf5 {[%emt 0:00:11]} 30. Bxe4 {[%emt 0:00:01]} Rf7 {[%emt 0:05:00]} 31. Bd4 {[%emt 0:04:17]} Bb6 {[%emt 0:04:29]} 32. c5 {[%emt 0:02:20]} Bc7 {[%emt 0:01:07]} 33. Rf5 {[%emt 0:05:16]} Rd8 {[%emt 0:02:40]} 34. Rxf7 {[%emt 0:03:15]} Kxf7 {[%emt 0:00:20]} 35. Bf5 {[%emt 0:00:59]} Qxa2 {[%emt 0:01:50]} 36. e3 {[%emt 0:01:19]} Qd5 {[%emt 0:00:30]} 37. Bg4 {[%emt 0:01:20]} Ke7 {[%emt 0:01:35]} 38. Qh7+ {[%emt 0:01:39]} Qf7 {[%emt 0:00:02]} 39. Qxh6 {[%emt 0:00:09]} Bf4 {[%emt 0:00:53]} 40. Bh5 {[%emt 0:01:46]} g4 {[%emt 0:01:02]} 41. exf4 {[%emt 0:31:36]} 1-0

[Event "WTCC-65 2018"]
[Site "Radebeul"]
[Date "2018.07.13"]
[Round "7"]
[White "Renman, Nils-Gustaf"]
[Black "Espig, Lutz"]
[Result "1-0"]
[ECO "E94"]
[WhiteElo "2343"]
[BlackElo "2258"]
[Annotator "NA"]
[PlyCount "67"]
[EventDate "2018.07.07"]
[EventType "team-tourn"]
[EventCountry "GER"]
[SourceTitle "playchess.com"]
[Source "ChessBase"]
[SourceQuality "1"]
[TimeControl "40/5400+30:1800+30"]

1. d4 {[%emt 0:00:00]} Nf6 {[%emt 0:00:00]} 2. c4 {[%emt 0:00:00]} d6 {[%emt 0:00:00]} 3. Nf3 {[%emt 0:00:00]} g6 {[%emt 0:00:15]} 4. Nc3 {[%emt 0:00:04]} Nbd7 {[%emt 0:00:29]} 5. e4 {[%emt 0:00:49]} e5 {[%emt 0:00:12]} 6. Be2 {[%emt 0:01:57]} Bg7 {[%emt 0:00:10]} 7. O-O {[%emt 0:00:22]} O-O {[%emt 0:00:08]} 8. Qc2 {[%emt 0:03:29]} c6 {[%emt 0:00:54]} 9. Rd1 {[%emt 0:01:24]} Qc7 {[%emt 0:00:46]} 10. Be3 {[%emt 0:01:13]} Ng4 {[%emt 0:03:30]} 11. Bg5 {[%emt 0:01:34]} f6 {[%emt 0:01:39]} 12. Bh4 {[%emt 0:04:55]} Nh6 {[%emt 0:01:17]} 13. b4 {[%emt 0:04:22]} f5 {[%emt 0:13:25]} 14. Be7 {[%emt 0:08:36]} Re8 {[%emt 0:01:52]} 15. dxe5 {[%emt 0:00:31]} dxe5 {[%emt 0:00:44]} 16. Bd6 {[%emt 0:00:17]} Qd8 {[%emt 0:01:21]} 17. c5 {[%emt 0:00:48]} Qf6 {[%emt 0:02:28]} 18. Bc4+ {[%emt 0:12:37]} Kh8 {[%emt 0:00:02]} 19. Qb3 {[%emt 0:06:12]} Bf8 {[%emt 0:13:06]} 20. h4 {[%emt 0:05:59]} a5 {[%emt 0:03:32]} 21. Ng5 {[%emt 0:04:01]} axb4 {[%emt 0:01:35]} 22. Qxb4 {[%emt 0:01:06]} Nb8 {[%emt 0:08:23]} 23. f3 {[%emt 0:03:28]} Be7 {[%emt 0:08:10]} 24. Na4 {[%emt 0:04:57]} Na6 {[%emt 0:05:20]} 25. Qc3 {[%emt 0:00:29]} Bxd6 {[%emt 0:04:43]} 26. Rxd6 {[%emt 0:03:31]} Qg7 {[%emt 0:09:44]} 27. Rad1 {[%emt 0:03:19]} fxe4 {[%emt 0:00:42]} 28. Nb6 {[%emt 0:04:31]} Rb8 {[%emt 0:04:51]} 29. Nxc8 {[%emt 0:01:29]} Rbxc8 {[%emt 0:00:45]} 30. Be6 {[%emt 0:01:37]} Rc7 {[%emt 0:04:16]} 31. Rd8 {[%emt 0:02:19]} Qf8 {[%emt 0:04:08]} 32. Qxe5+ {[%emt 0:01:19]} Rg7 {[%emt 0:00:01]} 33. Rxe8 {[%emt 0:01:02]} Qxe8 {[%emt 0:00:09]} 34. Qf6 1-0

[Event "WTCC-65 2018"]
[Site "Radebeul"]
[Date "2018.07.13"]
[Round "7"]
[White "Karasev, Vladimir I"]
[Black "Woeber, Friedrich"]
[Result "1/2-1/2"]
[ECO "A01"]
[WhiteElo "2337"]
[BlackElo "2114"]
[Annotator "NA"]
[PlyCount "53"]
[EventDate "2018.07.07"]
[EventType "team-tourn"]
[EventCountry "GER"]
[SourceTitle "playchess.com"]
[Source "ChessBase"]
[SourceQuality "1"]
[TimeControl "40/5400+30:1800+30"]

1. b3 {[%emt 0:00:00]} e5 {[%emt 0:00:10]} 2. Bb2 {[%emt 0:00:00]} Nc6 {[%emt 0:00:39]} 3. e3 {[%emt 0:00:00]} d6 {[%emt 0:02:11]} 4. g3 {[%emt 0:01:54]} Nf6 {[%emt 0:01:48]} 5. Bg2 {[%emt 0:00:07]} Be7 {[%emt 0:00:57]} 6. h3 {[%emt 0:00:36]} Be6 {[%emt 0:04:39]} 7. Nf3 {[%emt 0:07:48]} h6 {[%emt 0:03:27]} 8. d3 {[%emt 0:08:12]} O-O {[%emt 0:04:41]} 9. Nbd2 {[%emt 0:00:41]} Nh7 {[%emt 0:02:57]} 10. d4 {[%emt 0:09:10]} exd4 {[%emt 0:01:35]} 11. Nxd4 {[%emt 0:00:27]} Nxd4 {[%emt 0:00:57]} 12. Bxd4 {[%emt 0:00:03]} d5 {[%emt 0:03:04]} 13. O-O {[%emt 0:01:13]} c5 {[%emt 0:04:08]} 14. Bb2 {[%emt 0:01:10]} Bf6 {[%emt 0:05:22]} 15. c3 {[%emt 0:02:43]} Qd7 {[%emt 0:14:18]} 16. Kh2 {[%emt 0:04:26]} a5 {[%emt 0:02:08]} 17. e4 {[%emt 0:06:45]} Rfd8 {[%emt 0:04:27]} 18. f4 {[%emt 0:04:46]} dxe4 {[%emt 0:09:31]} 19. Nxe4 {[%emt 0:00:07]} Bd5 {[%emt 0:00:30]} 20. Qc2 {[%emt 0:17:07]} c4 {[%emt 0:07:12]} 21. Rad1 {[%emt 0:10:03]} Qb5 {[%emt 0:02:06]} 22. bxc4 {[%emt 0:06:20]} Qxc4 {[%emt 0:01:08]} 23. Rf2 {[%emt 0:05:07]} Bxe4 {[%emt 0:08:49]} 24. Bxe4 {[%emt 0:00:50]} Rxd1 {[%emt 0:00:13]} 25. Bxh7+ {[%emt 0:00:22]} Kh8 {[%emt 0:00:06]} 26. Qxd1 {[%emt 0:02:08]} Kxh7 {[%emt 0:00:10]} 27. Qc2+ {[%emt 0:02:51]} 1/2-1/2

[Event "WTCC-65 2018"]
[Site "Radebeul"]
[Date "2018.07.13"]
[Round "7"]
[White "Bellin, Robert"]
[Black "Vogt, Lothar"]
[Result "1/2-1/2"]
[ECO "A48"]
[WhiteElo "2333"]
[BlackElo "2376"]
[Annotator "NA"]
[PlyCount "23"]
[EventDate "2018.07.07"]
[EventType "team-tourn"]
[EventCountry "GER"]
[SourceTitle "playchess.com"]
[Source "ChessBase"]
[SourceQuality "1"]
[TimeControl "40/5400+30:1800+30"]

1. d4 {[%emt 0:02:08]} Nf6 {[%emt 0:00:00]} 2. Nf3 {[%emt 0:01:12]} g6 {[%emt 0:00:00]} 3. Bg5 {[%emt 0:01:12]} Bg7 {[%emt 0:00:00]} 4. Nbd2 {[%emt 0:00:07]} O-O {[%emt 0:04:16]} 5. c3 {[%emt 0:00:33]} d5 {[%emt 0:03:14]} 6. e3 {[%emt 0:00:25]} b6 {[%emt 0:00:44]} 7. Bd3 {[%emt 0:01:20]} Bb7 {[%emt 0:00:42]} 8. Qb1 {[%emt 0:02:47]} Nbd7 {[%emt 0:07:32]} 9. h3 {[%emt 0:02:18]} c5 {[%emt 0:02:29]} 10. O-O {[%emt 0:00:32]} Re8 {[%emt 0:04:21]} 11. Rd1 {[%emt 0:05:39]} Qc8 {[%emt 0:05:08]} 12. Bf4 {[%emt 0:07:20]} 1/2-1/2

[Event "WTCC-65 2018"]
[Site "Radebeul"]
[Date "2018.07.13"]
[Round "7"]
[White "Faibisovich, Vadim Z"]
[Black "Titz, Heimo"]
[Result "1-0"]
[ECO "A05"]
[WhiteElo "2312"]
[BlackElo "2164"]
[Annotator "NA"]
[PlyCount "107"]
[EventDate "2018.07.07"]
[EventType "team-tourn"]
[EventCountry "GER"]
[SourceTitle "playchess.com"]
[Source "ChessBase"]
[SourceQuality "1"]
[TimeControl "40/5400+30:1800+30"]

1. Nf3 {[%emt 0:00:00]} Nf6 {[%emt 0:00:43]} 2. c4 {[%emt 0:02:31]} c5 {[%emt 0:03:07]} 3. g3 {[%emt 0:04:26]} Nc6 {[%emt 0:09:46]} 4. Bg2 {[%emt 0:01:42]} d6 {[%emt 0:00:43]} 5. d4 {[%emt 0:07:26]} cxd4 {[%emt 0:00:09]} 6. Nxd4 {[%emt 0:00:08]} Bd7 {[%emt 0:00:10]} 7. O-O {[%emt 0:01:40]} g6 {[%emt 0:00:11]} 8. b3 {[%emt 0:04:35]} Bg7 {[%emt 0:03:15]} 9. Bb2 {[%emt 0:00:12]} O-O {[%emt 0:01:24]} 10. Nc3 {[%emt 0:04:20]} Nxd4 {[%emt 0:06:36]} 11. Qxd4 {[%emt 0:00:13]} Bc6 {[%emt 0:00:17]} 12. Nd5 {[%emt 0:07:36]} Ne8 {[%emt 0:00:37]} 13. Qd2 {[%emt 0:00:16]} Bxb2 {[%emt 0:00:20]} 14. Qxb2 {[%emt 0:00:09]} e6 {[%emt 0:00:21]} 15. Ne3 {[%emt 0:05:36]} Bxg2 {[%emt 0:03:49]} 16. Kxg2 {[%emt 0:00:52]} f5 {[%emt 0:00:46]} 17. Rad1 {[%emt 0:10:22]} Qb6 {[%emt 0:02:06]} 18. Qd4 {[%emt 0:03:10]} Qxd4 {[%emt 0:00:45]} 19. Rxd4 {[%emt 0:00:11]} Rf7 {[%emt 0:00:31]} 20. Rfd1 {[%emt 0:03:20]} Rc7 {[%emt 0:00:16]} 21. R1d2 {[%emt 0:03:03]} a6 {[%emt 0:01:25]} 22. a4 {[%emt 0:03:34]} Rac8 {[%emt 0:02:18]} 23. Ra2 {[%emt 0:03:44]} g5 {[%emt 0:00:46]} 24. Rdd2 {[%emt 0:01:43]} Rg7 {[%emt 0:01:02]} 25. Nc2 {[%emt 0:02:53]} Rcc7 {[%emt 0:03:04]} 26. Ra1 {[%emt 0:00:31]} h5 {[%emt 0:02:15]} 27. Re1 {[%emt 0:00:56]} Rcf7 {[%emt 0:09:56]} 28. e4 {[%emt 0:02:06]} fxe4 {[%emt 0:02:00]} 29. Rxe4 {[%emt 0:00:31]} e5 {[%emt 0:00:27]} 30. Re1 {[%emt 0:01:03]} g4 {[%emt 0:01:07]} 31. c5 {[%emt 0:03:35]} dxc5 {[%emt 0:04:09]} 32. Rxe5 {[%emt 0:00:13]} Nf6 {[%emt 0:00:14]} 33. Rxc5 {[%emt 0:01:07]} Kh7 {[%emt 0:01:01]} 34. Re2 {[%emt 0:01:45]} Re7 {[%emt 0:01:33]} 35. Rce5 {[%emt 0:01:21]} Rxe5 {[%emt 0:00:13]} 36. Rxe5 {[%emt 0:00:10]} Rc7 {[%emt 0:01:55]} 37. Ne3 {[%emt 0:02:22]} Kg6 {[%emt 0:00:43]} 38. Nd5 {[%emt 0:04:04]} Nxd5 {[%emt 0:00:21]} 39. Rxd5 {[%emt 0:00:07]} Rc6 {[%emt 0:01:35]} 40. b4 {[%emt 0:01:12]} Rb6 {[%emt 0:02:30]} 41. b5 {[%emt 0:31:24]} Re6 {[%emt 0:32:12]} 42. a5 {[%emt 0:02:03]} axb5 {[%emt 0:02:09]} 43. Rxb5 {[%emt 0:00:11]} Re7 {[%emt 0:01:55]} 44. h3 {[%emt 0:01:35]} gxh3+ {[%emt 0:02:02]} 45. Kxh3 {[%emt 0:00:09]} Re2 {[%emt 0:00:12]} 46. Rb6+ {[%emt 0:01:20]} Kf5 {[%emt 0:04:11]} 47. Rxb7 {[%emt 0:00:11]} Ra2 {[%emt 0:00:41]} 48. Rb5+ {[%emt 0:01:35]} Ke4 {[%emt 0:00:27]} 49. Kh4 {[%emt 0:04:56]} Rxf2 {[%emt 0:00:43]} 50. Kxh5 {[%emt 0:00:16]} Ra2 {[%emt 0:04:09]} 51. g4 {[%emt 0:00:30]} Kf4 {[%emt 0:00:43]} 52. g5 {[%emt 0:00:22]} Ra1 {[%emt 0:01:16]} 53. Kg6 {[%emt 0:00:10]} Ke4 {[%emt 0:03:25]} 54. Kf6 {[%emt 0:00:19]} 1-0

[Event "WTCC-65 2018"]
[Site "Radebeul"]
[Date "2018.07.13"]
[Round "7"]
[White "Pushkov, Nikolai"]
[Black "Bartsch, Berthold"]
[Result "1-0"]
[ECO "D45"]
[WhiteElo "2311"]
[BlackElo "2248"]
[Annotator "NA"]
[PlyCount "95"]
[EventDate "2018.07.07"]
[EventType "team-tourn"]
[EventCountry "GER"]
[SourceTitle "playchess.com"]
[Source "ChessBase"]
[SourceQuality "1"]
[TimeControl "40/5400+30:1800+30"]

1. d4 {[%emt 0:00:00]} Nf6 {[%emt 0:02:28]} 2. Nf3 {[%emt 0:00:00]} e6 {[%emt 0:01:05]} 3. c4 {[%emt 0:00:28]} d5 {[%emt 0:00:06]} 4. Nc3 {[%emt 0:00:13]} c6 {[%emt 0:00:55]} 5. e3 {[%emt 0:00:33]} Nbd7 {[%emt 0:00:27]} 6. Qc2 {[%emt 0:00:54]} Bd6 {[%emt 0:02:32]} 7. Bd3 {[%emt 0:00:41]} dxc4 {[%emt 0:03:03]} 8. Bxc4 {[%emt 0:00:07]} e5 {[%emt 0:00:20]} 9. O-O {[%emt 0:00:39]} exd4 {[%emt 0:00:23]} 10. exd4 {[%emt 0:00:10]} O-O {[%emt 0:00:12]} 11. Bg5 {[%emt 0:01:17]} Qc7 {[%emt 0:08:25]} 12. Rfe1 {[%emt 0:01:34]} h6 {[%emt 0:11:28]} 13. Bh4 {[%emt 0:00:36]} b5 {[%emt 0:00:53]} 14. Bb3 {[%emt 0:01:17]} Bb7 {[%emt 0:02:04]} 15. Rac1 {[%emt 0:03:24]} Bf4 {[%emt 0:10:03]} 16. Bg3 {[%emt 0:00:26]} Bxg3 {[%emt 0:01:22]} 17. hxg3 {[%emt 0:00:03]} Qb6 18. Ne5 {[%emt 0:14:29]} Nxe5 {[%emt 0:13:23]} 19. dxe5 {[%emt 0:00:06]} Nd5 {[%emt 0:02:13]} 20. Ne4 {[%emt 0:07:38]} Rae8 {[%emt 0:02:59]} 21. Nd6 {[%emt 0:01:10]} Re6 {[%emt 0:00:41]} 22. Qc5 {[%emt 0:03:35]} Ba8 {[%emt 0:10:49]} 23. Bxd5 {[%emt 0:02:08]} cxd5 {[%emt 0:00:19]} 24. Qxb6 {[%emt 0:00:32]} axb6 {[%emt 0:00:02]} 25. Nxb5 {[%emt 0:00:11]} f6 {[%emt 0:00:58]} 26. exf6 {[%emt 0:02:14]} Rexf6 {[%emt 0:00:06]} 27. f3 {[%emt 0:00:23]} Bb7 {[%emt 0:03:35]} 28. Rc7 {[%emt 0:01:39]} Ba6 {[%emt 0:00:58]} 29. Nd4 {[%emt 0:00:37]} R8f7 {[%emt 0:08:13]} 30. Ree7 {[%emt 0:00:42]} Rxe7 {[%emt 0:00:42]} 31. Rxe7 {[%emt 0:00:02]} Rf7 {[%emt 0:00:37]} 32. Rxf7 {[%emt 0:00:29]} Kxf7 {[%emt 0:00:03]} 33. Kf2 {[%emt 0:00:21]} g6 {[%emt 0:00:21]} 34. a4 {[%emt 0:00:38]} Ke7 {[%emt 0:00:10]} 35. g4 {[%emt 0:00:46]} Kd6 {[%emt 0:00:54]} 36. b4 {[%emt 0:00:03]} Bc8 {[%emt 0:04:03]} 37. Ke3 {[%emt 0:03:23]} Bd7 {[%emt 0:00:30]} 38. a5 {[%emt 0:00:12]} bxa5 {[%emt 0:00:13]} 39. bxa5 {[%emt 0:00:02]} Kc5 {[%emt 0:01:02]} 40. g3 {[%emt 0:00:18]} Bc8 {[%emt 0:00:32]} 41. Kd3 {[%emt 0:31:52]} Kb4 {[%emt 0:40:11]} 42. Nc6+ {[%emt 0:01:06]} Kc5 {[%emt 0:00:13]} 43. Ne7 {[%emt 0:02:59]} Ba6+ {[%emt 0:00:00]} 44. Kd2 {[%emt 0:00:00]} d4 {[%emt 0:00:00]} 45. Nxg6 {[%emt 0:00:00]} Kb4 {[%emt 0:00:00]} 46. Ne5 {[%emt 0:00:00]} Bb5 {[%emt 0:00:00]} 47. f4 {[%emt 0:00:00]} Kxa5 {[%emt 0:00:00]} 48. f5 {[%emt 0:00:00]} 1-0

[Event "WTCC-65 2018"]
[Site "Radebeul"]
[Date "2018.07.13"]
[Round "7"]
[White "Haakert, Juergen"]
[Black "Belinchis, Valerii"]
[Result "1/2-1/2"]
[ECO "A06"]
[WhiteElo "2302"]
[BlackElo "1881"]
[Annotator "NA"]
[PlyCount "57"]
[EventDate "2018.07.07"]
[EventType "team-tourn"]
[EventCountry "GER"]
[SourceTitle "playchess.com"]
[Source "ChessBase"]
[SourceQuality "1"]
[TimeControl "40/5400+30:1800+30"]

1. Nf3 {[%emt 0:04:06]} d5 {[%emt 0:00:00]} 2. g3 {[%emt 0:00:17]} c6 {[%emt 0:00:55]} 3. Bg2 {[%emt 0:00:07]} Bg4 {[%emt 0:01:47]} 4. O-O {[%emt 0:00:34]} Nd7 {[%emt 0:00:21]} 5. d3 {[%emt 0:00:56]} e5 {[%emt 0:01:11]} 6. Nbd2 {[%emt 0:00:07]} Ngf6 {[%emt 0:00:55]} 7. e4 {[%emt 0:00:10]} dxe4 {[%emt 0:01:29]} 8. dxe4 {[%emt 0:00:04]} Qc7 {[%emt 0:03:02]} 9. Qe1 {[%emt 0:00:07]} Bc5 {[%emt 0:02:06]} 10. h3 {[%emt 0:01:42]} Bxf3 {[%emt 0:01:55]} 11. Bxf3 {[%emt 0:00:34]} O-O {[%emt 0:00:45]} 12. Nc4 {[%emt 0:01:43]} Rfe8 {[%emt 0:06:09]} 13. a4 {[%emt 0:06:42]} b5 {[%emt 0:06:26]} 14. Ne3 {[%emt 0:01:07]} a6 {[%emt 0:02:46]} 15. b4 {[%emt 0:09:57]} Bd4 {[%emt 0:05:07]} 16. c3 {[%emt 0:00:11]} Bxe3 {[%emt 0:00:50]} 17. Bxe3 {[%emt 0:00:07]} Nb6 {[%emt 0:00:41]} 18. Bd1 {[%emt 0:03:19]} Nc4 {[%emt 0:00:45]} 19. Bg5 {[%emt 0:00:54]} Nd7 {[%emt 0:08:44]} 20. Bb3 {[%emt 0:00:18]} h6 {[%emt 0:04:23]} 21. Bxc4 {[%emt 0:04:40]} bxc4 {[%emt 0:12:53]} 22. Be3 {[%emt 0:00:10]} c5 {[%emt 0:00:54]} 23. Qb1 {[%emt 0:06:09]} a5 {[%emt 0:08:15]} 24. Rd1 {[%emt 0:15:26]} Rab8 {[%emt 0:03:04]} 25. b5 {[%emt 0:00:18]} Nb6 {[%emt 0:02:50]} 26. Qc2 {[%emt 0:02:29]} Red8 {[%emt 0:02:13]} 27. f3 {[%emt 0:04:50]} Qe7 {[%emt 0:02:09]} 28. Kf2 {[%emt 0:00:27]} Rbc8 {[%emt 0:02:41]} 29. Ke2 {[%emt 0:06:31]} 1/2-1/2

[Event "WTCC-65 2018"]
[Site "Radebeul"]
[Date "2018.07.13"]
[Round "7"]
[White "Khanukov, Boris"]
[Black "Bosbach, Gerhard"]
[Result "1/2-1/2"]
[ECO "A46"]
[WhiteElo "2273"]
[BlackElo "2119"]
[Annotator "NA"]
[PlyCount "65"]
[EventDate "2018.07.07"]
[EventType "team-tourn"]
[EventCountry "GER"]
[SourceTitle "playchess.com"]
[Source "ChessBase"]
[SourceQuality "1"]
[TimeControl "40/5400+30:1800+30"]

1. d4 {[%emt 0:00:00]} Nf6 {[%emt 0:00:00]} 2. Nf3 {[%emt 0:00:00]} d5 {[%emt 0:00:21]} 3. g3 {[%emt 0:00:20]} Bf5 {[%emt 0:02:02]} 4. Bg2 {[%emt 0:00:13]} h6 {[%emt 0:01:03]} 5. c4 {[%emt 0:01:21]} e6 {[%emt 0:05:42]} 6. Qb3 {[%emt 0:00:29]} Qc8 {[%emt 0:08:27]} 7. Nc3 {[%emt 0:06:20]} c6 {[%emt 0:04:14]} 8. Bf4 {[%emt 0:01:09]} dxc4 {[%emt 0:10:33]} 9. Qxc4 {[%emt 0:00:17]} Nbd7 {[%emt 0:00:12]} 10. O-O {[%emt 0:03:24]} Be7 {[%emt 0:04:05]} 11. Rfe1 {[%emt 0:04:17]} Ne4 {[%emt 0:03:05]} 12. Nd2 {[%emt 0:09:28]} Nxd2 {[%emt 0:03:40]} 13. Bxd2 {[%emt 0:00:04]} O-O {[%emt 0:01:47]} 14. e4 {[%emt 0:00:54]} Bg6 {[%emt 0:05:59]} 15. Ne2 {[%emt 0:04:51]} Re8 {[%emt 0:07:30]} 16. Rac1 {[%emt 0:02:07]} Nb6 {[%emt 0:00:53]} 17. Qb3 {[%emt 0:00:34]} Qd8 {[%emt 0:01:13]} 18. Be3 {[%emt 0:00:33]} Rc8 {[%emt 0:11:29]} 19. Nf4 {[%emt 0:03:24]} Bh7 {[%emt 0:00:56]} 20. Red1 {[%emt 0:01:02]} Rc7 {[%emt 0:04:40]} 21. a4 {[%emt 0:05:37]} Bg5 {[%emt 0:03:25]} 22. a5 {[%emt 0:01:18]} Nc8 {[%emt 0:00:31]} 23. a6 {[%emt 0:00:29]} b6 {[%emt 0:00:58]} 24. h4 {[%emt 0:03:00]} Bxf4 {[%emt 0:02:38]} 25. Bxf4 {[%emt 0:00:15]} Rd7 {[%emt 0:00:38]} 26. d5 {[%emt 0:13:40]} cxd5 {[%emt 0:01:18]} 27. exd5 {[%emt 0:00:07]} e5 {[%emt 0:00:20]} 28. Bd2 {[%emt 0:00:55]} Nd6 {[%emt 0:02:13]} 29. Bb4 {[%emt 0:00:16]} Be4 {[%emt 0:04:21]} 30. Bh3 {[%emt 0:07:28]} Bf5 {[%emt 0:00:37]} 31. Bg2 {[%emt 0:01:36]} Be4 {[%emt 0:00:05]} 32. Bh3 {[%emt 0:02:13]} Bf5 {[%emt 0:00:04]} 33. Bg2 {[%emt 0:00:35]} 1/2-1/2